bitfinex-derivatives/quotes_ETHF0:USTF0_20251118
["timestamp","ask_amount","ask_price","bid_price","bid_amount"]
[1763437697864,1.18494239,3021.8,3021.0,3.2078]
[1763437698061,1.67730737,3021.9,3020.2,3.2078]
[1763437698062,3.2078,3021.1,3020.2,3.2078]
[1763437698274,0.78890737,3021.0,3020.2,3.2078]
[1763437698661,3.2078,3020.6,3020.2,0.00341104]
[1763437698868,0.78890737,3020.5,3020.2,0.00341104]
[1763437699173,0.00496582,3020.7,3020.2,0.00341104]
[1763437699384,1.18494239,3021.6,3020.6,4.94692806]
[1763437699568,3.2078,3021.2,3020.2,0.00341104]
[1763437700578,3.21012291,3021.2,3020.2,0.00341104]
[1763437701076,3.2078,3020.8,3020.2,0.00341104]
[1763437701266,0.00232291,3021.2,3020.6,1.73912806]
[1763437702280,0.00232291,3021.2,3020.9,3.2078]
[1763437703281,0.00232291,3021.2,3020.6,1.73912806]
[1763437703778,0.00232291,3021.2,3020.5,4.112]
[1763437704575,0.00232291,3021.2,3020.6,1.73912806]
[1763437705184,0.00232291,3021.2,3020.8,0.9042]
[1763437705385,0.00232291,3021.2,3021.0,3.2078]
[1763437705681,0.00232291,3021.2,3020.8,0.9042]
[1763437706979,0.00232291,3021.2,3021.0,3.2078]
[1763437707181,0.00232291,3021.2,3021.0,4.94692806]
[1763437707382,2.66454358,3022.6,3021.2,0.7968]
[1763437707383,3.2078,3022.1,3021.2,0.7968]
[1763437707584,3.2078,3022.1,3021.9,0.7968]
[1763437708288,0.00395372,3022.1,3021.9,0.7968]
[1763437709181,0.00395372,3022.1,3021.8,3.2078]
[1763437709576,0.00395372,3022.1,3022.0,1.73912806]
[1763437710080,0.00395372,3022.1,3021.8,3.2078]
[1763437710682,4.94692806,3021.9,3020.7,3.18039029]
[1763437710981,3.2078,3021.1,3020.7,3.18039029]
[1763437711173,3.2078,3021.5,3020.7,3.18039029]
[1763437711372,3.2078,3022.0,3021.1,3.2078]
[1763437711572,0.00395372,3022.1,3021.9,3.2078]
[1763437712082,0.00395372,3022.1,3021.7,0.00496582]
[1763437712289,0.00395372,3022.1,3021.9,3.2078]
[1763437712482,3.2078,3023.4,3022.4,0.7195]
[1763437712681,3.2078,3023.4,3022.5,4.94692806]
[1763437713679,0.00268529,3023.4,3023.2,0.7629]
[1763437713872,0.00268529,3023.4,3022.9,3.2078]
[1763437714083,0.00268529,3023.4,3023.3,3.2078]
[1763437714387,3.2078,3024.4,3023.3,3.2078]
[1763437714586,3.2078,3024.4,3023.7,1.73912806]
[1763437714879,3.2078,3024.4,3023.5,0.00496582]
[1763437714880,3.2078,3024.0,3023.5,0.00496582]
[1763437715085,3.2078,3024.0,3023.2,0.75459075]
[1763437715276,3.2078,3024.0,3022.9,3.47035359]
[1763437715277,3.2078,3023.6,3022.9,3.2078]
[1763437715684,0.0040164,3024.0,3022.5,3.2114151]
[1763437715685,3.2078,3023.2,3022.5,3.2114151]
[1763437715979,3.2078,3023.2,3022.5,0.0036151]
[1763437716180,3.21276582,3023.2,3022.5,0.00858092]
[1763437717479,3.21276582,3023.2,3022.8,3.2078]
[1763437719081,4.01806582,3023.2,3022.5,0.00858092]
[1763437719282,3.2078,3022.8,3022.5,0.00858092]
[1763437723290,3.21276582,3023.2,3022.5,0.00858092]
[1763437724795,3.2078,3022.8,3022.5,0.00858092]
[1763437725185,0.4027,3022.6,3021.6,3.2078]
[1763437725385,0.4027,3022.6,3021.1,3.2078]
[1763437725386,3.2078,3021.7,3021.1,3.2078]
[1763437725583,3.2078,3021.2,3020.8,0.7629]
[1763437725985,3.2078,3021.6,3020.8,0.7629]
[1763437726185,3.2078,3022.0,3021.1,3.2078]
[1763437726392,0.00496582,3021.9,3021.2,0.00496582]
[1763437728689,0.00496582,3021.9,3021.2,3.21276582]
[1763437728895,0.00496582,3021.9,3021.2,0.00496582]
[1763437729095,3.2078,3021.5,3021.2,0.00496582]
[1763437730391,3.21276582,3021.9,3021.2,3.97566582]
[1763437730795,3.2078,3021.5,3021.2,0.00496582]
[1763437731790,3.21276582,3021.9,3021.2,0.76786582]
[1763437732100,0.00496582,3021.9,3021.5,3.2078]
[1763437733492,3.2078,3022.8,3021.5,3.2078]
[1763437733700,3.2078,3022.8,3022.1,3.2078]
[1763437733895,3.2078,3022.8,3021.7,3.2078]
[1763437734098,3.2078,3022.4,3021.7,3.2078]
[1763437734294,4.0045,3022.4,3021.7,3.2078]
[1763437734699,0.00853496,3022.4,3021.7,3.2078]
[1763437734896,0.00853496,3022.4,3021.9,1.73615538]
[1763437735094,0.00853496,3022.4,3021.7,4.94395538]
[1763437736794,0.00853496,3022.4,3022.1,3.2078]
[1763437737394,3.2078,3022.2,3021.2,2.5040212]
[1763437737601,3.2078,3022.2,3021.6,1.73615538]
[1763437737791,0.00853496,3022.4,3022.0,1.73615538]
[1763437737992,0.00853496,3022.4,3021.5,3.2078]
[1763437738200,0.00853496,3022.4,3021.5,4.94395538]
[1763437738404,3.2078,3022.1,3021.5,3.2078]
[1763437738703,3.2078,3022.1,3021.2,0.76786582]
[1763437738902,3.2078,3021.7,3021.2,0.00496582]
[1763437739795,3.2078,3022.1,3021.2,0.00496582]
[1763437740505,3.2078,3022.1,3021.6,0.7468]
[1763437740691,0.00853496,3022.4,3022.0,3.2078]
[1763437741098,0.00853496,3022.4,3022.3,1.73615538]
[1763437741299,3.2078,3023.0,3022.0,3.2078]
[1763437741601,3.2078,3023.0,3022.4,3.9546]
[1763437742400,3.21172232,3023.0,3022.4,3.2078]
[1763437742597,3.21172232,3023.0,3022.6,1.73615538]
[1763437743306,0.00392232,3023.0,3022.8,3.2078]
[1763437743507,2.232e-05,3023.0,3022.8,3.2078]
[1763437744902,3.2078,3024.2,3022.9,1.73615538]
[1763437745203,3.2078,3024.2,3023.4,3.2078]
[1763437745801,3.21044451,3024.2,3023.4,3.21094023]
[1763437746201,3.21044451,3024.2,3023.6,1.73615538]
[1763437746399,0.00264451,3024.2,3024.0,2.48295538]
[1763437746593,1.73615538,3025.8,3024.0,2.48295538]
[1763437746594,1.18494239,3025.9,3024.0,2.48295538]
[1763437746801,3.2078,3024.9,3024.1,4.94395538]
[1763437747404,3.2078,3024.9,3024.1,5.20938588]
[1763437747606,3.21167544,3024.9,3024.1,3.2078]
[1763437748001,0.00387544,3024.9,3024.1,4.94395538]
[1763437748197,3.2078,3025.7,3024.7,0.6998]
[1763437748393,0.4826,3026.8,3025.1,1.73615538]
[1763437748603,3.2078,3026.0,3025.0,4.94395538]
[1763437749408,3.2078,3025.6,3025.0,4.94395538]
[1763437749606,3.2078,3025.6,3025.4,1.73615538]
[1763437750106,3.2078,3025.6,3025.1,1.73615538]
[1763437750305,3.2078,3025.6,3025.0,3.2078]
[1763437751000,3.8988,3025.6,3025.0,3.2078]
[1763437751313,3.2078,3025.6,3025.0,3.2078]
[1763437751502,3.2078,3025.6,3025.1,1.73615538]
[1763437751699,0.00406724,3026.0,3025.1,1.73615538]
[1763437751908,0.00406724,3026.0,3025.5,1.73615538]
[1763437752110,0.00406724,3026.0,3025.4,3.2078]
[1763437752401,3.2078,3025.7,3024.9,3.21276582]
[1763437752608,0.00406724,3026.0,3025.3,3.2078]
[1763437752798,3.2078,3025.7,3024.9,3.21276582]
[1763437753303,3.2078,3025.3,3024.9,3.21276582]
[1763437753507,3.2078,3025.3,3024.9,0.00496582]
[1763437753701,6.0,3025.2,3023.9,1.73615538]
[1763437753902,3.2078,3024.5,3023.9,1.73615538]
[1763437754209,3.2078,3025.3,3024.3,1.73615538]
[1763437754606,3.2078,3025.3,3024.1,3.2078]
[1763437754815,0.00493792,3025.0,3024.4,0.00495745]
[1763437755010,0.00493792,3025.0,3024.8,1.73615538]
[1763437755308,3.2078,3024.9,3024.4,0.00495745]
[1763437756815,0.00493792,3025.0,3024.4,0.00495745]
[1763437756816,3.2078,3024.5,3024.4,0.00495745]
[1763437757311,9.2078,3024.5,3023.8,3.2078]
[1763437757506,3.2078,3024.1,3023.4,3.21094023]
[1763437757710,0.686,3024.0,3023.4,3.21094023]
[1763437757902,3.2078,3023.6,3023.4,0.00314023]
[1763437758204,3.21060177,3023.6,3023.4,0.00314023]
[1763437759208,0.00280177,3023.6,3023.4,1.73929561]
[1763437759411,0.00280177,3023.6,3023.4,0.00314023]
[1763437759612,0.00280177,3023.6,3023.4,1.73929561]
[1763437759903,0.00280177,3023.6,3023.4,0.00314023]
[1763437760105,0.00280177,3023.6,3023.4,4.94709561]
[1763437760509,0.00280177,3023.6,3023.4,3.21094023]
[1763437761716,3.2078,3024.4,3023.4,3.21094023]
[1763437762315,3.2078,3024.4,3023.6,1.96583445]
[1763437762812,3.21165014,3024.4,3023.6,1.96583445]
[1763437763011,3.21165014,3024.4,3023.4,3.21094023]
[1763437763417,3.9041,3024.0,3023.4,3.21094023]
[1763437764007,3.2078,3024.0,3023.4,3.21094023]
[1763437764708,0.00385014,3024.4,3023.9,3.2078]
[1763437764910,0.00385014,3024.4,3023.6,1.96583445]
[1763437765107,3.2078,3024.3,3023.6,1.96583445]
[1763437765503,3.2078,3024.3,3023.5,3.2078]
[1763437767208,3.2078,3024.3,3023.4,0.00314023]
[1763437767516,3.2078,3023.8,3023.4,0.00314023]
[1763437767714,0.3466,3023.3,3022.2,3.2078]
[1763437768012,3.2078,3022.9,3022.2,3.2078]
[1763437768817,3.21275745,3022.9,3022.2,3.21592987]
[1763437771130,0.00495745,3022.9,3022.6,3.2078]
[1763437771536,0.00495745,3022.9,3022.6,3.8376]
[1763437771833,0.00495745,3022.9,3022.6,3.2078]
[1763437772033,3.21275745,3022.9,3022.2,3.21592987]
[1763437774236,0.00495745,3022.9,3022.2,3.21592987]
[1763437774539,0.00495745,3022.9,3022.7,1.96583445]
[1763437774832,0.00495745,3022.9,3022.6,3.2078]
[1763437775339,0.00495745,3022.9,3022.2,3.21592987]
[1763437775938,3.21275745,3022.9,3022.2,3.21592987]
[1763437777240,3.21275745,3022.9,3022.6,0.6298]
[1763437777741,3.21275745,3022.9,3022.2,3.21592987]
[1763437777943,3.21275745,3022.9,3022.6,0.6298]
[1763437779039,3.21275745,3022.9,3022.8,1.0723]
[1763437779343,3.21275745,3022.9,3022.5,1.96583445]
[1763437779535,0.5,3022.8,3021.8,3.2078]
[1763437779739,3.2078,3021.9,3020.9,3.2078]
[1763437780138,3.2078,3021.9,3020.9,3.47865997]
[1763437780343,0.5,3022.8,3021.3,1.96583445]
[1763437780642,3.2078,3022.4,3021.7,0.00495745]
[1763437781640,3.2078,3022.0,3021.7,0.00495745]
[1763437781836,0.6533,3021.9,3021.7,0.00495745]
[1763437782135,6.6533,3021.9,3021.3,0.0033093]
[1763437782336,3.2078,3021.4,3021.3,0.0033093]
[1763437785352,3.2078,3021.4,3020.1,3.2078]
[1763437785647,0.6533,3021.9,3020.3,1.96583445]
[1763437785648,3.2078,3020.9,3020.3,1.96583445]
[1763437785941,1.18494239,3022.3,3020.6,3.2078]
[1763437786139,4.98394358,3022.5,3021.2,1.96583445]
[1763437786140,0.6533,3021.9,3021.2,1.96583445]
[1763437786335,0.6533,3021.9,3021.2,0.00349412]
[1763437786539,0.65826589,3021.9,3021.2,0.00684678]
[1763437786739,0.65826589,3021.9,3021.5,3.2078]
[1763437788946,0.65826589,3021.9,3021.2,0.00684678]
[1763437788947,3.2078,3021.7,3021.2,0.00684678]
[1763437789147,0.6533,3021.2,3020.4,3.2078]
[1763437790149,0.6533,3020.5,3020.4,3.21103584]
[1763437790447,0.65590478,3020.5,3020.4,0.00323584]
[1763437791243,0.65590478,3020.5,3019.8,3.2078]
[1763437792451,0.65590478,3020.5,3019.8,3.21088526]
[1763437792950,3.2078,3020.0,3019.8,0.00308526]
[1763437793254,0.6533,3019.8,3019.4,3.2078]
[1763437794041,3.2078,3019.5,3019.4,0.00383876]
[1763437795644,3.2078,3019.5,3018.7,0.29575908]
[1763437795645,3.2078,3019.5,3018.7,0.03312739]
[1763437795950,3.2078,3018.8,3018.7,0.03312739]
[1763437796755,3.2078,3018.8,3018.7,0.03676415]
[1763437799149,3.2078,3019.2,3018.7,0.03676415]
[1763437799551,0.644,3019.1,3018.7,0.03676415]
[1763437799746,3.2078,3018.8,3018.7,0.03676415]
[1763437801254,3.2078,3018.8,3017.6,3.2078]
[1763437801557,0.00496589,3018.5,3018.0,3.2078]
[1763437801749,2.43113567,3018.7,3018.4,0.6374]
[1763437801956,3.2078,3020.0,3018.4,5.81103445]
[1763437802258,3.2078,3020.0,3019.3,3.2078]
[1763437802551,3.2078,3020.0,3019.1,0.6374]
[1763437802741,0.00496589,3019.9,3019.2,0.00496588]
[1763437803853,0.2441,3019.8,3019.2,0.00496588]
[1763437804158,3.2078,3019.3,3018.4,3.84784555]
[1763437804553,3.2078,3019.3,3018.8,3.2078]
[1763437804759,3.2078,3019.7,3018.8,3.2078]
[1763437804957,3.2078,3019.3,3018.8,3.2078]
[1763437805160,3.2078,3019.3,3018.4,0.00264555]
[1763437805352,3.2078,3019.3,3018.4,0.64004555]
[1763437805553,3.2078,3019.3,3018.4,0.00264555]
[1763437805756,3.2078,3018.9,3018.4,0.00264555]
[1763437806860,0.6414,3018.4,3017.4,3.2078]
[1763437807059,3.2078,3018.1,3017.4,3.2078]
[1763437807557,3.21276589,3018.1,3017.4,3.2078]
[1763437808354,3.21579031,3018.1,3017.4,3.21047508]
[1763437808764,0.00799031,3018.1,3017.4,3.21047508]
[1763437808955,0.00799031,3018.1,3017.8,3.2078]
[1763437812261,3.21579031,3018.1,3017.4,0.00267508]
[1763437812459,3.2078,3017.7,3017.4,0.00267508]
[1763437813660,3.21579031,3018.1,3017.4,0.00267508]
[1763437814468,3.8518,3017.7,3017.4,0.00267508]
[1763437814655,3.2078,3017.7,3017.4,0.00267508]
[1763437815061,3.21579031,3018.1,3017.4,0.00267508]
[1763437816173,0.00799031,3018.1,3017.7,3.8452]
[1763437816670,0.00799031,3018.1,3017.4,0.00267508]
[1763437816965,0.00799031,3018.1,3017.7,3.2078]
[1763437817363,0.00799031,3018.1,3017.4,3.21047508]
[1763437817561,3.2078,3018.0,3017.4,0.00267508]
[1763437819170,0.00799031,3018.1,3017.4,3.21047508]
[1763437819460,3.2078,3018.0,3017.4,0.00267508]
[1763437819664,0.79628076,3017.9,3017.4,0.00267508]
[1763437819967,3.2078,3017.6,3016.6,3.2078]
[1763437820172,3.2078,3017.2,3016.6,3.2078]
[1763437820365,0.79628076,3017.1,3016.6,3.2078]
[1763437820870,0.79628076,3017.1,3016.6,3.21163395]
[1763437821059,1.18494239,3017.6,3016.6,3.21163395]
[1763437821260,1.98195776,3017.6,3016.6,3.21163395]
[1763437821567,1.98195776,3017.5,3016.6,3.21163395]
[1763437821870,1.18494239,3017.3,3017.0,3.2078]
[1763437822073,4.39274239,3017.3,3016.6,0.00383395]
[1763437822268,0.7967231,3017.2,3016.6,0.00383395]
[1763437822570,0.7967231,3017.2,3016.8,3.2078]
[1763437822764,1.18494239,3017.6,3016.8,3.2078]
[1763437823161,1.98165493,3017.6,3016.8,3.2078]
[1763437823965,0.79671254,3017.5,3016.8,3.2078]
[1763437824173,0.79671254,3017.4,3016.8,3.2078]
[1763437824371,0.79671254,3017.3,3016.8,3.2078]
[1763437824672,0.5557,3017.7,3016.8,3.2078]
[1763437824969,0.79637394,3017.6,3016.8,3.2078]
[1763437825173,0.79637394,3017.5,3017.0,1.74226227]
[1763437825467,0.00799031,3018.1,3017.4,1.74226227]
[1763437825673,0.80438862,3018.1,3017.7,3.8213]
[1763437825972,0.00799031,3018.1,3017.7,3.8213]
[1763437826667,0.00799031,3018.1,3017.7,3.2078]
[1763437826866,0.00799031,3018.1,3017.7,3.8264]
[1763437827270,0.79633423,3018.5,3018.0,1.74226227]
[1763437827571,3.2078,3019.1,3018.4,2.36086227]
[1763437827770,3.2078,3019.1,3018.7,3.2078]
[1763437828369,3.2113992,3019.1,3018.7,3.2078]
[1763437829372,0.0035992,3019.1,3018.7,3.2078]
[1763437829569,0.0035992,3019.1,3018.8,1.74226227]
[1763437829768,0.0035992,3019.1,3018.8,1.74583759]
[1763437830567,0.0035992,3019.1,3018.8,0.00357532]
[1763437830766,0.0035992,3019.1,3018.9,1.74226227]
[1763437830967,0.0035992,3019.1,3018.8,0.00357532]
[1763437832269,0.0035992,3019.1,3018.9,1.74226227]
[1763437833175,0.0035992,3019.1,3018.8,0.00357532]
[1763437835972,0.5929992,3019.1,3018.8,0.00357532]
[1763437836170,0.9842,3018.9,3018.8,0.00357532]
[1763437836372,0.9842,3018.7,3017.8,3.2078]
[1763437836572,0.9842,3017.9,3017.8,3.2078]
[1763437836888,0.9842,3017.9,3017.3,3.2078]
[1763437837070,3.2078,3018.4,3017.7,3.2078]
[1763437837269,0.3154,3018.6,3017.7,4.95006227]
[1763437837469,0.3154,3018.6,3017.7,4.95427465]
[1763437837669,0.79604663,3018.7,3018.1,3.2078]
[1763437837981,3.2078,3018.8,3018.1,3.2078]
[1763437839278,0.5929992,3019.1,3018.1,3.2078]
[1763437839484,0.79598931,3019.0,3018.1,3.2078]
[1763437840377,0.5929992,3019.1,3018.1,3.2078]
[1763437840773,0.0035992,3019.1,3018.5,3.2078]
[1763437840974,0.0035992,3019.1,3018.6,0.6186]
[1763437841881,0.0035992,3019.1,3018.5,3.2078]
[1763437842282,0.0035992,3019.1,3019.0,0.969]
[1763437842479,0.0035992,3019.1,3018.6,0.6186]
[1763437842676,0.0035992,3019.1,3018.5,3.2078]
[1763437842983,0.0035992,3019.1,3018.6,0.6186]
[1763437844179,0.0035992,3019.1,3018.5,3.2078]
[1763437844380,0.0035992,3019.1,3018.6,0.6186]
[1763437845384,0.0035992,3019.1,3018.5,3.2078]
[1763437845586,0.0035992,3019.1,3018.6,0.6186]
[1763437846883,0.0035992,3019.1,3019.0,0.969]
[1763437847184,0.0035992,3019.1,3018.9,3.2078]
[1763437847390,0.0035992,3019.1,3019.0,0.969]
[1763437848294,0.0035992,3019.1,3018.9,3.2078]
[1763437849282,0.0035992,3019.1,3018.6,0.6186]
[1763437849487,0.0035992,3019.1,3018.5,3.2078]
[1763437850192,0.0035992,3019.1,3018.6,0.6186]
[1763437850584,0.0035992,3019.1,3019.0,0.969]
[1763437850787,0.0035992,3019.1,3018.9,3.2078]
[1763437850987,0.0035992,3019.1,3019.0,0.969]
[1763437852586,0.0035992,3019.1,3019.0,1.24088198]
[1763437852787,0.00496589,3019.2,3019.1,0.969]
[1763437853986,0.00868739,3019.2,3019.1,0.969]
[1763437856185,0.79770201,3019.9,3019.8,0.969]
[1763437856384,3.2078,3020.0,3019.3,1.74226227]
[1763437857194,3.21703278,3020.0,3019.3,1.74722816]
[1763437857597,3.21703278,3020.0,3019.3,0.00496589]
[1763437857886,0.9842,3019.4,3019.3,0.00496589]
[1763437858482,0.5687,3019.2,3018.7,3.2078]
[1763437858790,3.2078,3019.4,3018.7,3.2078]
[1763437858991,0.79808778,3019.3,3018.7,3.2078]
[1763437859393,0.5687,3019.2,3018.7,3.2078]
[1763437859595,0.9142,3018.8,3018.3,3.2078]
[1763437860680,3.2078,3019.4,3019.3,0.9503]
[1763437860886,0.00923278,3020.0,3019.9,0.9503]
[1763437861090,0.5894,3021.0,3019.9,0.95280262]
[1763437861290,0.79772461,3020.9,3020.0,3.2078]
[1763437861492,3.2078,3020.7,3019.9,0.00250262]
[1763437861794,0.79411748,3020.6,3020.0,3.2078]
[1763437862186,0.00830204,3020.6,3020.0,3.21276589]
[1763437862386,0.80206873,3020.6,3020.0,3.21276589]
[1763437863192,0.00830204,3020.6,3020.5,0.9503]
[1763437867191,0.00830204,3020.6,3020.0,0.00496589]
[1763437868295,0.00830204,3020.6,3020.5,0.9503]
[1763437868691,3.2078,3021.5,3020.5,0.9503]
[1763437868899,3.2078,3021.5,3020.8,4.95006227]
[1763437869193,2.32711635,3022.7,3021.2,4.95006227]
[1763437869194,3.2078,3022.1,3021.2,4.95006227]
[1763437869388,0.7912752,3022.0,3021.2,4.95006227]
[1763437869591,3.2078,3022.5,3022.0,0.9503]
[1763437869791,0.00496589,3022.6,3022.5,0.9503]
[1763437869995,0.00496589,3022.6,3022.5,0.00394735]
[1763437870198,0.00884156,3022.6,3022.5,0.00394735]
[1763437870391,0.00884156,3022.6,3022.5,0.95424735]
[1763437870587,3.2078,3023.3,3022.5,6.00394735]
[1763437870789,3.2078,3023.3,3022.9,1.74226227]
[1763437871188,3.7765,3023.3,3022.5,0.00394735]
[1763437871500,3.2078,3022.9,3022.5,0.00394735]
[1763437871686,3.21059875,3022.9,3022.5,0.00394735]
[1763437871995,3.21059875,3022.9,3021.9,0.00496589]
[1763437871996,0.5687,3022.6,3021.9,0.00496589]
[1763437872192,3.99648865,3022.5,3021.4,3.2078]
[1763437872397,0.78868865,3022.4,3021.4,3.2078]
[1763437872698,3.2078,3021.7,3021.0,3.7545]
[1763437872900,3.2078,3021.7,3021.0,3.21154445]
[1763437873195,3.2078,3022.1,3021.4,3.2078]
[1763437873388,3.2078,3022.1,3021.0,4.95877261]
[1763437874186,3.2078,3022.1,3021.4,3.2078]
[1763437874602,5.53491635,3023.9,3022.0,4.95006227]
[1763437874794,0.5687,3025.4,3023.7,1.74226227]
[1763437874795,0.5687,3024.6,3023.7,1.74226227]
[1763437874999,0.5687,3024.6,3024.4,1.74226227]
[1763437875308,0.5687,3024.6,3024.2,2.40922339]
[1763437875693,0.57200216,3024.6,3024.2,2.41185766]
[1763437877089,0.5687,3024.0,3023.3,3.2078]
[1763437877402,3.7765,3024.0,3023.3,3.2078]
[1763437877894,0.5687,3024.0,3023.3,3.2078]
[1763437878087,0.5687,3024.0,3023.3,3.21627909]
[1763437878301,0.5687,3024.0,3023.3,3.48812188]
[1763437878794,0.5687,3024.0,3023.7,3.2078]
[1763437879398,3.7765,3024.0,3023.3,3.21627909]
[1763437880001,3.7765,3024.0,3023.4,1.74226227]
[1763437880396,3.7765,3024.0,3023.3,3.21627909]
[1763437881397,0.6289,3023.2,3022.9,3.2078]
[1763437881703,0.6289,3023.2,3022.5,1.74226227]
[1763437881904,0.6289,3023.2,3022.8,3.2078]
[1763437882291,3.2078,3022.9,3022.4,3.2078]
[1763437882494,0.6289,3022.4,3021.8,3.2078]
[1763437882800,3.2078,3022.0,3021.8,0.00239276]
[1763437883597,3.8404511,3022.4,3021.8,0.00239276]
[1763437883802,0.6326511,3022.4,3021.9,4.95006227]
[1763437883997,0.0037511,3022.4,3022.3,4.95006227]
[1763437884595,0.00496589,3023.0,3022.3,10.95006227]
[1763437884790,3.2078,3023.4,3022.9,1.9658319]
[1763437884996,0.5687,3024.0,3023.3,3.2078]
[1763437885197,0.5687,3024.0,3023.7,3.2078]
[1763437885599,0.57126866,3024.0,3023.7,3.2078]
[1763437886199,3.2078,3023.9,3023.5,0.00496589]
[1763437886601,0.6289,3023.2,3023.1,3.2078]
[1763437886805,0.6289,3023.2,3022.7,3.2078]
[1763437888293,0.57126866,3024.0,3021.9,6.354]
[1763437888294,3.2078,3023.9,3023.1,3.2078]
[1763437888695,0.57126866,3024.0,3023.1,3.2078]
[1763437888994,0.57126866,3024.0,3023.5,3.2078]
[1763437890213,3.77906866,3024.0,3023.5,3.2078]
[1763437890914,0.57126866,3024.0,3023.5,3.2078]
[1763437891213,0.00256866,3024.0,3023.9,3.2078]
[1763437891507,0.00496589,3024.2,3023.9,3.2078]
[1763437891707,3.2078,3024.9,3023.9,3.2078]
[1763437891908,0.6213,3024.8,3024.3,3.2078]
[1763437892510,0.62474301,3024.8,3024.3,3.21104333]
[1763437893610,0.00344301,3024.8,3024.7,3.2078]
[1763437894908,0.62474301,3024.8,3024.7,3.2078]
[1763437895713,0.62474301,3024.8,3024.3,0.00324333]
[1763437896008,3.2078,3024.6,3024.2,0.00496589]
[1763437896307,3.2078,3024.6,3023.4,3.2078]
[1763437896308,0.6213,3024.0,3023.4,3.2078]
[1763437896909,3.2078,3023.8,3023.0,3.2078]
[1763437897210,3.2078,3023.8,3023.0,3.21059104]
[1763437898710,0.6213,3024.0,3023.0,3.21059104]
[1763437898914,0.6213,3024.0,3023.4,3.2078]
[1763437899612,3.2078,3024.2,3023.4,3.2078]
[1763437903017,0.6213,3024.0,3023.4,3.2078]
[1763437904418,0.6213,3023.3,3021.9,3.2078]
[1763437904612,0.6213,3023.3,3020.9,1.70020896]
[1763437904613,0.6213,3022.6,3021.5,3.2078]
[1763437904814,0.6213,3022.6,3022.0,3.2078]
[1763437905321,0.6249249,3022.6,3022.0,3.21037944]
[1763437905505,0.0036249,3022.6,3022.0,3.21037944]
[1763437906317,0.0036249,3022.6,3022.5,3.2078]
[1763437906526,0.0036249,3022.6,3022.1,3.2078]
[1763437910620,0.6249249,3022.6,3022.1,3.2078]
[1763437910831,3.2078,3022.5,3022.0,0.00257944]
[1763437911020,0.6249249,3022.6,3022.0,0.00257944]
[1763437911221,0.6249249,3022.6,3022.0,3.21037944]
[1763437912527,0.6249249,3022.6,3022.0,0.00257944]
[1763437912828,3.2078,3022.3,3022.0,0.00257944]
[1763437915129,3.2078,3022.3,3020.7,3.2078]
[1763437915326,3.2078,3021.7,3020.7,3.2078]
[1763437915532,3.2078,3021.7,3020.7,3.46856418]
[1763437915834,3.2078,3021.7,3021.1,3.2078]
[1763437916234,3.2078,3021.7,3021.1,3.21051]
[1763437920624,3.2078,3022.1,3021.5,3.2078]
[1763437921525,3.2078,3022.5,3021.5,3.2078]
[1763437922037,3.2078,3022.5,3021.9,3.2078]
[1763437922734,0.6018,3021.9,3021.5,3.2078]
[1763437922928,0.6018,3021.9,3021.1,0.00271]
[1763437923129,3.2078,3021.7,3021.1,0.00271]
[1763437923326,0.6018,3021.9,3021.1,0.00271]
[1763437924935,0.6018,3021.9,3021.4,3.2078]
[1763437925236,3.8096,3022.2,3021.4,3.2078]
[1763437925535,0.6018,3022.2,3021.4,3.2078]
[1763437925836,0.6249249,3022.6,3021.9,3.2078]
[1763437926029,0.6249249,3022.6,3021.1,0.00271]
[1763437926030,0.6018,3022.2,3021.4,3.2078]
[1763437928040,0.6249249,3022.6,3021.8,3.2078]
[1763437928338,0.6249249,3022.6,3022.2,3.2078]
[1763437931144,0.0036249,3022.6,3022.2,3.2078]
[1763437931531,0.00496589,3022.9,3022.2,3.2078]
[1763437931738,0.6018,3022.8,3022.2,3.2078]
[1763437932642,0.0025702,3022.8,3022.6,5.17496068]
[1763437934233,0.6043702,3022.8,3022.6,5.17496068]
[1763437935838,0.0025702,3022.8,3022.6,5.17496068]
[1763437936239,0.9998,3022.7,3022.6,3.2078]
[1763437936543,0.6043702,3022.8,3022.6,3.2078]
[1763437937943,0.9998,3022.7,3022.6,3.2078]
[1763437938544,0.9998,3022.3,3022.2,3.2078]
[1763437938742,0.5265,3022.2,3021.6,3.2078]
[1763437938944,0.8608,3021.7,3021.6,3.2078]
[1763437940251,0.5265,3022.2,3021.6,3.2078]
[1763437940437,0.5265,3022.2,3021.6,5.17496068]
[1763437941048,0.5265,3022.2,3022.0,3.2078]
[1763437941449,0.5265,3022.2,3021.6,5.17496068]
[1763437941649,0.5265,3022.2,3021.6,3.2078]
[1763437942545,0.5265,3022.2,3021.6,5.17496068]
[1763437942750,0.5265,3022.2,3022.1,3.2078]
[1763437943348,0.5265,3022.2,3021.7,3.2078]
[1763437943855,0.5265,3022.2,3022.1,3.2078]
[1763437944642,3.8121702,3022.8,3022.1,3.2078]
[1763437945043,3.8121702,3022.8,3022.1,5.17496068]
[1763437945248,0.5265,3022.2,3022.1,5.17496068]
[1763437945849,0.5265,3022.2,3022.1,3.2078]
[1763437946658,1.3873,3022.2,3022.1,3.2078]
[1763437946856,4.5951,3022.2,3021.3,1.73692723]
[1763437947656,4.5951,3022.2,3021.7,1.73692723]
[1763437948048,4.5951,3022.2,3021.2,3.2078]
[1763437948049,4.0829,3021.8,3021.3,1.73692723]
[1763437948451,0.8751,3021.8,3021.3,1.73692723]
[1763437948654,3.2078,3021.7,3021.3,1.73692723]
[1763437949158,3.2078,3021.9,3021.3,1.73692723]
[1763437950756,3.2078,3021.9,3021.7,1.73692723]
[1763437951561,0.8751,3021.8,3021.2,3.2078]
[1763437952559,3.2078,3021.5,3021.1,0.00271]
[1763437952754,3.2078,3021.5,3021.4,1.73692723]
[1763437952958,3.2078,3022.0,3021.9,0.9069]
[1763437953160,3.2078,3022.0,3021.9,2.64382723]
[1763437954053,3.2078,3022.0,3021.9,1.73692723]
[1763437954266,4.0829,3022.0,3021.5,4.94472723]
[1763437954464,0.8751,3021.5,3021.1,1.70291896]
[1763437954766,0.47743903,3021.5,3021.1,0.00271]
[1763437955061,3.2078,3021.6,3021.1,0.00271]
[1763437955259,3.2078,3021.6,3021.4,1.73692723]
[1763437955963,3.2078,3022.0,3021.4,1.73692723]
[1763437956364,3.2078,3021.6,3021.4,1.73692723]